fUST/lending_fUST_20260528
["ID","MTS","AMOUNT","RATE_DAILY","PERIOD"]
[423176850,1779905450000,-503.87576626,8.767e-05,2]
[423176864,1779905450000,-500.0,8.767e-05,2]
[423176846,1779905450000,-574.45,8.767e-05,2]
[423176820,1779905450000,-500.0,8.767e-05,2]
[423176849,1779905450000,-512.43,8.767e-05,2]
[423176819,1779905450000,-500.0,8.767e-05,2]
[423176821,1779905450000,-486.89159194,8.767e-05,2]
[423176824,1779905450000,-500.0,8.767e-05,2]
[423176823,1779905450000,-500.0,8.767e-05,2]
[423176822,1779905450000,-500.0,8.767e-05,2]
[423176825,1779905450000,-292.27867845,8.767e-05,2]
[423176826,1779905450000,-500.0,8.767e-05,2]
[423176828,1779905450000,-500.0,8.767e-05,2]
[423176829,1779905450000,-501.6020872,8.767e-05,2]
[423176831,1779905450000,-500.0,8.767e-05,2]
[423176830,1779905450000,-500.0,8.767e-05,2]
[423176832,1779905450000,-500.0,8.767e-05,2]
[423176827,1779905450000,-500.0,8.767e-05,2]
[423176841,1779905450000,-502.14147158,8.767e-05,2]
[423176835,1779905450000,-500.0,8.767e-05,2]
[423176834,1779905450000,-373.74,8.767e-05,2]
[423176836,1779905450000,-500.0,8.767e-05,2]
[423176837,1779905450000,-500.0,8.767e-05,2]
[423176839,1779905450000,-500.0,8.767e-05,2]
[423176838,1779905450000,-500.0,8.767e-05,2]
[423176840,1779905450000,-470.94390729,8.767e-05,2]
[423176843,1779905450000,-500.0,8.767e-05,2]
[423176842,1779905450000,-500.0,8.767e-05,2]
[423176844,1779905450000,-418.92869078,8.767e-05,2]
[423176833,1779905450000,-322.62,8.767e-05,2]
[423176847,1779905450000,-500.0,8.767e-05,2]
[423176845,1779905450000,-500.0,8.767e-05,2]
[423176921,1779905451000,-500.0,8.767e-05,2]
[423176924,1779905451000,-500.0,8.767e-05,2]
[423176913,1779905451000,-500.0,8.767e-05,2]
[423176929,1779905451000,-500.0,8.767e-05,2]
[423176923,1779905451000,-500.0,8.767e-05,2]
[423176922,1779905451000,-2060.07,8.767e-05,2]
[423176912,1779905451000,-500.0,8.767e-05,2]
[423176919,1779905451000,-368.01,8.767e-05,2]
[423176918,1779905451000,-500.0,8.767e-05,2]
[423176917,1779905451000,-500.0,8.767e-05,2]
[423176914,1779905451000,-500.0,8.767e-05,2]
[423176927,1779905451000,-500.0,8.767e-05,2]
[423176920,1779905451000,-500.0,8.767e-05,2]
[423176926,1779905451000,-500.0,8.767e-05,2]
[423176941,1779905451000,-500.0,8.767e-05,2]
[423176925,1779905451000,-500.0,8.767e-05,2]
[423176931,1779905451000,-500.0,8.767e-05,2]
[423176930,1779905451000,-500.0,8.767e-05,2]
[423176932,1779905451000,-500.0,8.767e-05,2]
[423176933,1779905451000,-500.0,8.767e-05,2]
[423176935,1779905451000,-500.0,8.767e-05,2]
[423176936,1779905451000,-500.0,8.767e-05,2]
[423176937,1779905451000,-390.69,8.767e-05,2]
[423176934,1779905451000,-501.55499102,8.767e-05,2]
[423176938,1779905451000,-500.0,8.767e-05,2]
[423176939,1779905451000,-500.0,8.767e-05,2]
[423176940,1779905451000,-500.0,8.767e-05,2]
[423176943,1779905451000,-521.81,8.767e-05,2]
[423176915,1779905451000,-500.0,8.767e-05,2]
[423176928,1779905451000,-500.0,8.767e-05,2]
[423176911,1779905451000,-500.0,8.767e-05,2]
[423176882,1779905451000,-310.96,8.767e-05,2]
[423176908,1779905451000,-500.0,8.767e-05,2]
[423176942,1779905451000,-500.0,8.767e-05,2]
[423176880,1779905451000,-500.0,8.767e-05,2]
[423176888,1779905451000,-500.0,8.767e-05,2]
[423176883,1779905451000,-500.0,8.767e-05,2]
[423176885,1779905451000,-623.91,8.767e-05,2]
[423176884,1779905451000,-500.0,8.767e-05,2]
[423176881,1779905451000,-606.41,8.767e-05,2]
[423176886,1779905451000,-500.0,8.767e-05,2]
[423176887,1779905451000,-500.0,8.767e-05,2]
[423176890,1779905451000,-500.0,8.767e-05,2]
[423176889,1779905451000,-424.08,8.767e-05,2]
[423176892,1779905451000,-500.0,8.767e-05,2]
[423176891,1779905451000,-500.0,8.767e-05,2]
[423176894,1779905451000,-500.0,8.767e-05,2]
[423176916,1779905451000,-500.0,8.767e-05,2]
[423176893,1779905451000,-500.0,8.767e-05,2]
[423176895,1779905451000,-500.0,8.767e-05,2]
[423176897,1779905451000,-500.0,8.767e-05,2]
[423176900,1779905451000,-500.0,8.767e-05,2]
[423176901,1779905451000,-500.0,8.767e-05,2]
[423176896,1779905451000,-500.0,8.767e-05,2]
[423176898,1779905451000,-500.0,8.767e-05,2]
[423176899,1779905451000,-500.0,8.767e-05,2]
[423176902,1779905451000,-500.0,8.767e-05,2]
[423176904,1779905451000,-503.27,8.767e-05,2]
[423176906,1779905451000,-592.56004284,8.767e-05,2]
[423176905,1779905451000,-500.0,8.767e-05,2]
[423176907,1779905451000,-500.0,8.767e-05,2]
[423176909,1779905451000,-500.0,8.767e-05,2]
[423176910,1779905451000,-500.0,8.767e-05,2]
[423176903,1779905451000,-500.0,8.767e-05,2]
[423176944,1779905451000,-500.0,8.767e-05,2]
[423177009,1779905451000,-500.0,9.041e-05,2]
[423176947,1779905451000,-500.0,8.767e-05,2]
[423176982,1779905451000,-500.0,9.041e-05,2]
[423176981,1779905451000,-500.0,9.041e-05,2]
[423176984,1779905451000,-500.0,9.041e-05,2]
[423176983,1779905451000,-500.0,9.041e-05,2]
[423176986,1779905451000,-500.0,9.041e-05,2]
[423176999,1779905451000,-324.8,9.041e-05,2]
[423176988,1779905451000,-500.0,9.041e-05,2]
[423176997,1779905451000,-500.0,9.041e-05,2]
[423176990,1779905451000,-478.98,9.041e-05,2]
[423176992,1779905451000,-500.0,9.041e-05,2]
[423176987,1779905451000,-500.0,9.041e-05,2]
[423176985,1779905451000,-500.0,9.041e-05,2]
[423176996,1779905451000,-500.0,9.041e-05,2]
[423176994,1779905451000,-500.0,9.041e-05,2]
[423176995,1779905451000,-500.0,9.041e-05,2]
[423176991,1779905451000,-500.0,9.041e-05,2]
[423176998,1779905451000,-500.0,9.041e-05,2]
[423176989,1779905451000,-500.0,9.041e-05,2]
[423176993,1779905451000,-503.27,9.041e-05,2]
[423177001,1779905451000,-500.0,9.041e-05,2]
[423177003,1779905451000,-500.0,9.041e-05,2]
[423177000,1779905451000,-500.0,9.041e-05,2]
[423177002,1779905451000,-2060.07,9.041e-05,2]
[423177004,1779905451000,-500.0,9.041e-05,2]
[423177007,1779905451000,-592.66,9.041e-05,2]
[423177006,1779905451000,-500.0,9.041e-05,2]
[423177005,1779905451000,-500.0,9.041e-05,2]
[423177010,1779905451000,-500.0,9.041e-05,2]
[423176946,1779905451000,-508.76,8.767e-05,2]
[423176980,1779905451000,-500.0,9.041e-05,2]
[423176978,1779905451000,-500.0,9.041e-05,2]
[423177008,1779905451000,-426.72,9.041e-05,2]
[423176977,1779905451000,-500.0,9.041e-05,2]
[423176979,1779905451000,-500.0,9.041e-05,2]
[423176945,1779905451000,-500.0,8.767e-05,2]
[423176952,1779905451000,-521.72,9.041e-05,2]
[423176955,1779905451000,-500.0,9.041e-05,2]
[423176950,1779905451000,-492.0,8.826e-05,2]
[423176953,1779905451000,-500.0,9.041e-05,2]
[423176954,1779905451000,-500.0,9.041e-05,2]
[423176951,1779905451000,-640.2127,9.041e-05,2]
[423176949,1779905451000,-1000.0,8.826e-05,2]
[423176957,1779905451000,-500.0,9.041e-05,2]
[423176959,1779905451000,-500.0,9.041e-05,2]
[423176958,1779905451000,-235.64,9.041e-05,2]
[423176956,1779905451000,-500.0,9.041e-05,2]
[423176960,1779905451000,-237.27,9.041e-05,2]
[423176963,1779905451000,-500.0,9.041e-05,2]
[423176948,1779905451000,-516.48,8.767e-05,2]
[423176961,1779905451000,-500.0,9.041e-05,2]
[423176974,1779905451000,-226.5,9.041e-05,2]
[423176976,1779905451000,-500.0,9.041e-05,2]
[423176975,1779905451000,-500.0,9.041e-05,2]
[423176973,1779905451000,-500.0,9.041e-05,2]
[423176962,1779905451000,-363.37,9.041e-05,2]
[423176970,1779905451000,-500.0,9.041e-05,2]
[423176972,1779905451000,-325.52,9.041e-05,2]
[423176965,1779905451000,-185.18,9.041e-05,2]
[423176968,1779905451000,-500.0,9.041e-05,2]
[423176966,1779905451000,-500.0,9.041e-05,2]
[423176967,1779905451000,-265.74,9.041e-05,2]
[423176964,1779905451000,-500.0,9.041e-05,2]
[423176969,1779905451000,-500.0,9.041e-05,2]
[423176971,1779905451000,-246.92,9.041e-05,2]
[423177057,1779905452000,-500.0,9.315e-05,2]
[423177053,1779905452000,-500.0,9.315e-05,2]
[423177054,1779905452000,-500.0,9.315e-05,2]
[423177051,1779905452000,-484.42,9.315e-05,2]
[423177052,1779905452000,-500.0,9.315e-05,2]
[423177046,1779905452000,-500.0,9.315e-05,2]
[423177048,1779905452000,-500.0,9.315e-05,2]
[423177045,1779905452000,-500.0,9.315e-05,2]
[423177044,1779905452000,-500.0,9.315e-05,2]
[423177047,1779905452000,-198.62,9.315e-05,2]
[423177049,1779905452000,-500.0,9.315e-05,2]
[423177050,1779905452000,-615.16,9.315e-05,2]
[423177063,1779905452000,-500.0,9.315e-05,2]
[423177055,1779905452000,-374.7,9.315e-05,2]
[423177062,1779905452000,-500.0,9.315e-05,2]
[423177059,1779905452000,-500.0,9.315e-05,2]
[423177058,1779905452000,-545.2,9.315e-05,2]
[423177060,1779905452000,-465.95,9.315e-05,2]
[423177061,1779905452000,-500.0,9.315e-05,2]
[423177065,1779905452000,-500.0,9.315e-05,2]
[423177064,1779905452000,-2060.07,9.315e-05,2]
[423177066,1779905452000,-500.0,9.315e-05,2]
[423177068,1779905452000,-500.0,9.315e-05,2]
[423177071,1779905452000,-393.09,9.315e-05,2]
[423177076,1779905452000,-521.81,9.315e-05,2]
[423177042,1779905452000,-500.0,9.315e-05,2]
[423177070,1779905452000,-500.0,9.315e-05,2]
[423177056,1779905452000,-503.27,9.315e-05,2]
[423177041,1779905452000,-500.0,9.315e-05,2]
[423177023,1779905452000,-253.45496366,9.175e-05,2]
[423177040,1779905452000,-500.0,9.315e-05,2]
[423177073,1779905452000,-355.25,9.315e-05,2]
[423177011,1779905452000,-500.0,9.041e-05,2]
[423177012,1779905452000,-502.91920752,9.041e-05,2]
[423177014,1779905452000,-500.0,9.041e-05,2]
[423177020,1779905452000,-521.81,9.041e-05,2]
[423177013,1779905452000,-500.0,9.041e-05,2]
[423177015,1779905452000,-500.0,9.041e-05,2]
[423177021,1779905452000,-500.0,9.041e-05,2]
[423177016,1779905452000,-500.0,9.041e-05,2]
[423177019,1779905452000,-500.0,9.041e-05,2]
[423177017,1779905452000,-500.0,9.041e-05,2]
[423177018,1779905452000,-500.0,9.041e-05,2]
[423177022,1779905452000,-500.0,9.041e-05,2]
[423177043,1779905452000,-500.0,9.315e-05,2]
[423177025,1779905452000,-356.18,9.315e-05,2]
[423177026,1779905452000,-500.0,9.315e-05,2]
[423177035,1779905452000,-500.0,9.315e-05,2]
[423177028,1779905452000,-247.12,9.315e-05,2]
[423177032,1779905452000,-387.97,9.315e-05,2]
[423177027,1779905452000,-500.0,9.315e-05,2]
[423177031,1779905452000,-500.0,9.315e-05,2]
[423177029,1779905452000,-500.0,9.315e-05,2]
[423177033,1779905452000,-555.61,9.315e-05,2]
[423177034,1779905452000,-500.0,9.315e-05,2]
[423177037,1779905452000,-500.0,9.315e-05,2]
[423177036,1779905452000,-500.0,9.315e-05,2]
[423177038,1779905452000,-500.0,9.315e-05,2]
[423177039,1779905452000,-171.67,9.315e-05,2]
[423177024,1779905452000,-807.1162,9.315e-05,2]
[423177069,1779905452000,-500.0,9.315e-05,2]
[423177030,1779905452000,-500.0,9.315e-05,2]
[423177067,1779905452000,-500.0,9.315e-05,2]
[423177107,1779905452000,-500.0,9.589e-05,2]
[423177108,1779905452000,-2060.07,9.589e-05,2]
[423177109,1779905452000,-411.09,9.589e-05,2]
[423177110,1779905452000,-263.66,9.589e-05,2]
[423177112,1779905452000,-500.0,9.589e-05,2]
[423177111,1779905452000,-500.0,9.589e-05,2]
[423177114,1779905452000,-500.0,9.589e-05,2]
[423177113,1779905452000,-500.0,9.589e-05,2]
[423177115,1779905452000,-500.0,9.589e-05,2]
[423177134,1779905452000,-480.15,9.863e-05,2]
[423177116,1779905452000,-500.0,9.589e-05,2]
[423177120,1779905452000,-1000.0,9.709e-05,2]
[423177118,1779905452000,-300.88,9.589e-05,2]
[423177104,1779905452000,-500.0,9.589e-05,2]
[423177119,1779905452000,-500.0,9.589e-05,2]
[423177122,1779905452000,-688.3245,9.863e-05,2]
[423177121,1779905452000,-791.0,9.709e-05,2]
[423177123,1779905452000,-500.0,9.863e-05,2]
[423177125,1779905452000,-500.0,9.863e-05,2]
[423177124,1779905452000,-565.19,9.863e-05,2]
[423177126,1779905452000,-417.68,9.863e-05,2]
[423177127,1779905452000,-500.0,9.863e-05,2]
[423177128,1779905452000,-500.0,9.863e-05,2]
[423177130,1779905452000,-500.0,9.863e-05,2]
[423177129,1779905452000,-442.14,9.863e-05,2]
[423177132,1779905452000,-500.0,9.863e-05,2]
[423177133,1779905452000,-500.0,9.863e-05,2]
[423177074,1779905452000,-500.0,9.315e-05,2]
[423177117,1779905452000,-521.81,9.589e-05,2]
[423177106,1779905452000,-500.0,9.589e-05,2]
[423177131,1779905452000,-500.0,9.863e-05,2]
[423177103,1779905452000,-503.38,9.589e-05,2]
[423177105,1779905452000,-451.47,9.589e-05,2]
[423177075,1779905452000,-500.0,9.315e-05,2]
[423177072,1779905452000,-511.76,9.315e-05,2]
[423177079,1779905452000,-688.3245,9.589e-05,2]
[423177078,1779905452000,-500.0,9.315e-05,2]
[423177085,1779905452000,-280.52,9.589e-05,2]
[423177086,1779905452000,-500.0,9.589e-05,2]
[423177084,1779905452000,-500.0,9.589e-05,2]
[423177088,1779905452000,-500.0,9.589e-05,2]
[423177087,1779905452000,-500.0,9.589e-05,2]
[423177081,1779905452000,-500.0,9.589e-05,2]
[423177083,1779905452000,-500.0,9.589e-05,2]
[423177080,1779905452000,-500.0,9.589e-05,2]
[423177082,1779905452000,-500.0,9.589e-05,2]
[423177077,1779905452000,-500.0,9.315e-05,2]
[423177089,1779905452000,-500.0,9.589e-05,2]
[423177097,1779905452000,-500.0,9.589e-05,2]
[423177090,1779905452000,-500.0,9.589e-05,2]
[423177096,1779905452000,-500.0,9.589e-05,2]
[423177098,1779905452000,-252.01,9.589e-05,2]
[423177100,1779905452000,-500.0,9.589e-05,2]
[423177095,1779905452000,-500.0,9.589e-05,2]
[423177094,1779905452000,-500.0,9.589e-05,2]
[423177091,1779905452000,-500.0,9.589e-05,2]
[423177093,1779905452000,-500.0,9.589e-05,2]
[423177092,1779905452000,-391.49,9.589e-05,2]
[423177099,1779905452000,-500.0,9.589e-05,2]
[423177102,1779905452000,-503.27,9.589e-05,2]
[423177101,1779905452000,-547.45,9.589e-05,2]
[423177183,1779905453000,-500.0,0.0001041,2]
[423177166,1779905453000,-500.0,0.00010136,2]
[423177167,1779905453000,-500.0,0.00010136,2]
[423177170,1779905453000,-503.27,0.00010136,2]
[423177169,1779905453000,-500.0,0.00010136,2]
[423177171,1779905453000,-500.0,0.00010136,2]
[423177172,1779905453000,-500.0,0.00010136,2]
[423177173,1779905453000,-2060.07,0.00010136,2]
[423177175,1779905453000,-500.0,0.00010136,2]
[423177165,1779905453000,-500.0,0.00010136,2]
[423177168,1779905453000,-500.0,0.00010136,2]
[423177179,1779905453000,-521.81,0.00010136,2]
[423177176,1779905453000,-585.58,0.00010136,2]
[423177177,1779905453000,-500.0,0.00010136,2]
[423177178,1779905453000,-500.0,0.00010136,2]
[423177181,1779905453000,-688.3245,0.0001041,2]
[423177182,1779905453000,-500.0,0.0001041,2]
[423177180,1779905453000,-244.28,0.00010136,2]
[423177185,1779905453000,-500.0,0.0001041,2]
[423177184,1779905453000,-500.0,0.0001041,2]
[423177186,1779905453000,-500.0,0.0001041,2]
[423177188,1779905453000,-500.0,0.0001041,2]
[423177163,1779905453000,-347.1,0.00010136,2]
[423177187,1779905453000,-171.52,0.0001041,2]
[423177174,1779905453000,-500.0,0.00010136,2]
[423177164,1779905453000,-500.0,0.00010136,2]
[423177149,1779905453000,-456.53,9.863e-05,2]
[423177161,1779905453000,-500.0,0.00010136,2]
[423177196,1779905453000,-500.0,0.0001041,2]
[423177135,1779905453000,-500.0,9.863e-05,2]
[423177137,1779905453000,-500.0,9.863e-05,2]
[423177136,1779905453000,-295.8,9.863e-05,2]
[423177138,1779905453000,-500.0,9.863e-05,2]
[423177142,1779905453000,-205.83,9.863e-05,2]
[423177141,1779905453000,-503.27,9.863e-05,2]
[423177140,1779905453000,-500.0,9.863e-05,2]
[423177144,1779905453000,-120.20942584,9.863e-05,2]
[423177143,1779905453000,-500.0,9.863e-05,2]
[423177139,1779905453000,-500.0,9.863e-05,2]
[423177145,1779905453000,-379.79057416,9.863e-05,2]
[423177162,1779905453000,-500.0,0.00010136,2]
[423177147,1779905453000,-500.0,9.863e-05,2]
[423177157,1779905453000,-500.0,0.00010136,2]
[423177148,1779905453000,-500.0,9.863e-05,2]
[423177150,1779905453000,-500.0,9.863e-05,2]
[423177151,1779905453000,-500.0,9.863e-05,2]
[423177153,1779905453000,-521.81,9.863e-05,2]
[423177154,1779905453000,-500.0,9.863e-05,2]
[423177155,1779905453000,-159.90764941,9.952e-05,2]
[423177152,1779905453000,-500.0,9.863e-05,2]
[423177156,1779905453000,-688.3245,0.00010136,2]
[423177159,1779905453000,-500.0,0.00010136,2]
[423177158,1779905453000,-517.54,0.00010136,2]
[423177160,1779905453000,-198.98,0.00010136,2]
[423177146,1779905453000,-2060.07,9.863e-05,2]
[423177194,1779905453000,-500.0,0.0001041,2]
[423177201,1779905453000,-1000.0,0.0001068,2]
[423177193,1779905453000,-500.0,0.0001041,2]
[423177225,1779905453000,-475.506,0.00010887,2]
[423177224,1779905453000,-185.0,0.00010887,2]
[423177226,1779905453000,-500.0,0.00010958,2]
[423177227,1779905453000,-500.0,0.00010958,2]
[423177231,1779905453000,-192.77,0.00010958,2]
[423177230,1779905453000,-500.0,0.00010958,2]
[423177234,1779905453000,-503.27,0.00010958,2]
[423177233,1779905453000,-500.0,0.00010958,2]
[423177229,1779905453000,-500.0,0.00010958,2]
[423177232,1779905453000,-500.0,0.00010958,2]
[423177235,1779905453000,-500.0,0.00010958,2]
[423177236,1779905453000,-2060.07,0.00010958,2]
[423177228,1779905453000,-500.0,0.00010958,2]
[423177238,1779905453000,-500.0,0.00010958,2]
[423177237,1779905453000,-500.0,0.00010958,2]
[423177192,1779905453000,-503.27,0.0001041,2]
[423177240,1779905453000,-521.81,0.00010958,2]
[423177244,1779905453000,-500.0,0.00011232,2]
[423177243,1779905453000,-500.0,0.00011232,2]
[423177242,1779905453000,-287.00047356,0.00011175,2]
[423177241,1779905453000,-182.0,0.00010959,3]
[423177248,1779905453000,-500.0,0.00011232,2]
[423177247,1779905453000,-500.0,0.00011232,2]
[423177246,1779905453000,-500.0,0.00011232,2]
[423177245,1779905453000,-154.92,0.00011232,2]
[423177222,1779905453000,-766.98895499,0.00010745,2]
[423177221,1779905453000,-521.81,0.00010684,2]
[423177239,1779905453000,-478.76,0.00010958,2]
[423177219,1779905453000,-500.0,0.00010684,2]
[423177220,1779905453000,-500.0,0.00010684,2]
[423177189,1779905453000,-500.0,0.0001041,2]
[423177190,1779905453000,-500.0,0.0001041,2]
[423177191,1779905453000,-500.0,0.0001041,2]
[423177197,1779905453000,-500.0,0.0001041,2]
[423177198,1779905453000,-500.0,0.0001041,2]
[423177200,1779905453000,-521.81,0.0001041,2]
[423177199,1779905453000,-500.0,0.0001041,2]
[423177202,1779905453000,-1000.0,0.0001068,2]
[423177210,1779905453000,-500.0,0.00010684,2]
[423177205,1779905453000,-1027.3569,0.00010684,2]
[423177209,1779905453000,-500.0,0.00010684,2]
[423177208,1779905453000,-381.56,0.00010684,2]
[423177195,1779905453000,-2060.07,0.0001041,2]
[423177207,1779905453000,-500.0,0.00010684,2]
[423177217,1779905453000,-500.0,0.00010684,2]
[423177204,1779905453000,-500.0,0.00010684,2]
[423177218,1779905453000,-301.34,0.00010684,2]
[423177216,1779905453000,-2060.07,0.00010684,2]
[423177215,1779905453000,-342.21,0.00010684,2]
[423177214,1779905453000,-500.0,0.00010684,2]
[423177213,1779905453000,-503.27,0.00010684,2]
[423177211,1779905453000,-500.0,0.00010684,2]
[423177212,1779905453000,-500.0,0.00010684,2]
[423177206,1779905453000,-500.0,0.00010684,2]
[423177203,1779905453000,-500.0,0.00010684,2]
[423177223,1779905453000,-2256.127,0.00010882,2]
[423177267,1779905454000,-226.4,0.00011506,2]
[423177276,1779905454000,-500.0,0.0001178,2]
[423177268,1779905454000,-503.27,0.00011506,2]
[423177269,1779905454000,-2060.07,0.00011506,2]
[423177271,1779905454000,-521.81,0.00011506,2]
[423177270,1779905454000,-500.0,0.00011506,2]
[423177275,1779905454000,-500.0,0.0001178,2]
[423177278,1779905454000,-503.27,0.0001178,2]
[423177280,1779905454000,-500.0,0.0001178,2]
[423177279,1779905454000,-2060.07,0.0001178,2]
[423177281,1779905454000,-521.81,0.0001178,2]
[423177282,1779905454000,-159.90764941,0.00011793,2]
[423177283,1779905454000,-151.12,0.00012,2]
[423177285,1779905454000,-588.53,0.00012054,2]
[423177266,1779905454000,-500.0,0.00011506,2]
[423177277,1779905454000,-500.0,0.0001178,2]
[423177265,1779905454000,-209.63,0.00011506,2]
[423177253,1779905454000,-276.69908442,0.00011232,2]
[423177273,1779905454000,-1000.0,0.00011748,2]
[423177284,1779905454000,-500.0,0.00012054,2]
[423177249,1779905454000,-500.0,0.00011232,2]
[423177251,1779905454000,-435.65,0.00011232,2]
[423177252,1779905454000,-1783.37091558,0.00011232,2]
[423177250,1779905454000,-503.27,0.00011232,2]
[423177255,1779905454000,-143.42391558,0.00011232,2]
[423177254,1779905454000,-500.0,0.00011232,2]
[423177274,1779905454000,-579.0,0.00011748,2]
[423177257,1779905454000,-521.81,0.00011232,2]
[423177259,1779905454000,-151.0,0.00011503,2]
[423177262,1779905454000,-500.0,0.00011506,2]
[423177256,1779905454000,-403.14608442,0.00011232,2]
[423177261,1779905454000,-162.38071901,0.00011503,2]
[423177263,1779905454000,-500.0,0.00011506,2]
[423177264,1779905454000,-623.47,0.00011506,2]
[423177272,1779905454000,-1000.0,0.00011748,2]
[423177260,1779905454000,-537.68450001,0.00011503,2]
[423177286,1779905454000,-500.0,0.00012054,2]
[423177258,1779905454000,-1413.0,0.00011381,2]
[423177288,1779905454000,-2060.07,0.00012054,2]
[423177313,1779905454000,-1000.0,0.00012923,2]
[423177311,1779905454000,-2060.07,0.00012876,2]
[423177314,1779905454000,-1000.0,0.00012923,2]
[423177310,1779905454000,-503.27,0.00012876,2]
[423177309,1779905454000,-201.74,0.00012876,2]
[423177312,1779905454000,-521.81,0.00012876,2]
[423177315,1779905454000,-1000.0,0.00012923,2]
[423177308,1779905454000,-151.0,0.00012649,2]
[423177317,1779905454000,-2060.07,0.0001315,2]
[423177316,1779905454000,-503.27,0.0001315,2]
[423177318,1779905454000,-521.81,0.0001315,2]
[423177321,1779905454000,-198.68092866,0.00013397,2]
[423177320,1779905454000,-500.0,0.00013358,2]
[423177322,1779905454000,-793.92899094,0.00013397,2]
[423177323,1779905454000,-503.27,0.00013424,2]
[423177287,1779905454000,-503.27,0.00012054,2]
[423177324,1779905454000,-1127.74365942,0.00013424,2]
[423177307,1779905454000,-167.0,0.00012603,3]
[423177319,1779905454000,-320.54598345,0.00013175,2]
[423177306,1779905454000,-500.0,0.00012602,3]
[423177305,1779905454000,-500.0,0.00012602,3]
[423177289,1779905454000,-500.0,0.00012054,2]
[423177291,1779905454000,-500.0,0.00012328,2]
[423177292,1779905454000,-500.0,0.00012328,2]
[423177298,1779905454000,-150.307,0.00012441,2]
[423177295,1779905454000,-500.0,0.00012328,2]
[423177293,1779905454000,-503.27,0.00012328,2]
[423177297,1779905454000,-372.722,0.00012441,2]
[423177290,1779905454000,-521.81,0.00012054,2]
[423177294,1779905454000,-2060.07,0.00012328,2]
[423177299,1779905454000,-247.81,0.00012602,2]
[423177301,1779905454000,-503.27,0.00012602,2]
[423177300,1779905454000,-500.0,0.00012602,2]
[423177303,1779905454000,-341.51,0.00012602,2]
[423177302,1779905454000,-2060.07,0.00012602,2]
[423177296,1779905454000,-521.81,0.00012328,2]
[423177304,1779905454000,-521.81,0.00012602,2]
[423177347,1779905799000,162.12731,3.234e-05,2]
[423177558,1779906632000,-500.0,6.409e-05,2]
[423177560,1779906632000,-500.0,6.409e-05,2]
[423177562,1779906632000,-500.0,6.409e-05,2]
[423177564,1779906632000,-500.0,6.409e-05,2]
[423177566,1779906632000,-490.39255346,6.409e-05,2]
[423177570,1779906632000,-500.0,6.409e-05,2]
[423177578,1779906632000,-226.7066293,6.409e-05,2]
[423177574,1779906632000,-500.0,6.409e-05,2]
[423177556,1779906632000,-500.0,6.409e-05,2]
[423177580,1779906632000,-500.0,6.409e-05,2]
[423177572,1779906632000,-185.33499776,6.409e-05,2]
[423177554,1779906632000,-500.0,6.409e-05,2]
[423177535,1779906632000,-3729.50782728,6.221e-05,2]
[423177553,1779906632000,-500.0,6.409e-05,2]
[423177549,1779906632000,-300.0,6.408e-05,2]
[423177541,1779906632000,-1200.0,6.408e-05,2]
[423177547,1779906632000,-300.0,6.408e-05,2]
[423177551,1779906632000,-500.0,6.409e-05,2]
[423177537,1779906632000,-210.69709148,6.347e-05,2]
[423177545,1779906632000,-300.0,6.408e-05,2]
[423177543,1779906632000,-300.0,6.408e-05,2]
[423177533,1779906632000,-997.32222237,6.221e-05,2]